bitfinex/quotes_BTCUSD_20240811
["timestamp","ask_amount","ask_price","bid_price","bid_amount"]
[1723382274560,0.000831,60363.0,60362.0,0.6138801]
[1723382274768,0.004831,60363.0,60362.0,0.6138801]
[1723382275204,0.000831,60363.0,60362.0,0.6138801]
[1723382275416,0.001831,60363.0,60362.0,0.6138801]
[1723382277324,0.001831,60363.0,60362.0,0.4979141]
[1723382277325,0.000831,60363.0,60362.0,0.4979141]
[1723382277544,0.002831,60363.0,60362.0,0.6138801]
[1723382278018,0.002831,60363.0,60362.0,0.4979141]
[1723382278244,0.000831,60363.0,60362.0,0.4979141]
[1723382278473,0.001831,60363.0,60362.0,0.6138801]
[1723382278932,0.000831,60363.0,60362.0,0.4979141]
[1723382279410,0.350726,60363.0,60362.0,0.4979141]
[1723382279642,0.35883633,60363.0,60362.0,0.4979141]
[1723382279871,0.36083633,60363.0,60362.0,0.4979141]
[1723382280179,0.35883633,60363.0,60362.0,0.4979141]
[1723382280609,0.348726,60363.0,60362.0,0.4979141]
[1723382280824,0.349726,60363.0,60362.0,0.4979141]
[1723382281036,0.585656,60363.0,60362.0,0.4979141]
[1723382281247,1.56417282,60363.0,60362.0,0.4979141]
[1723382281459,1.57277636,60363.0,60362.0,0.4979141]
[1723382281671,1.57677636,60363.0,60362.0,0.4979141]
[1723382282337,1.80870636,60363.0,60362.0,0.4979141]
[1723382282777,1.81270636,60363.0,60362.0,0.4979141]
[1723382283612,1.58077636,60363.0,60362.0,0.4979141]
[1723382284005,1.81270636,60363.0,60362.0,0.4979141]
[1723382284264,1.51427543,60363.0,60362.0,0.4979141]
[1723382284466,1.81278557,60363.0,60362.0,0.4979141]
[1723382284678,1.58085557,60363.0,60362.0,0.4979141]
[1723382284864,1.81278557,60363.0,60362.0,0.4979141]
[1723382285108,1.6960007,60363.0,60362.0,0.4979141]
[1723382285366,1.8119657,60363.0,60362.0,0.4979141]
[1723382285581,1.5800357,60363.0,60362.0,0.4979141]
[1723382286238,1.42565122,60363.0,60362.0,0.4979141]
[1723382286463,1.34728222,60363.0,60362.0,0.4979141]
[1723382287968,1.41388356,60363.0,60362.0,0.4979141]
[1723382288181,1.34728222,60363.0,60362.0,0.4979141]
[1723382288398,1.3406651,60363.0,60362.0,0.4979141]
[1723382288603,1.41537219,60363.0,60362.0,0.4979141]
[1723382289223,1.34877543,60363.0,60362.0,0.4979141]
[1723382289648,1.42927543,60363.0,60362.0,0.4979141]
[1723382292760,1.49581789,60363.0,60362.0,0.4979141]
[1723382292967,1.42927543,60363.0,60362.0,0.4979141]
[1723382293166,1.42778222,60363.0,60362.0,0.4979141]
[1723382293423,0.75934689,60363.0,60362.0,0.4979141]
[1723382293645,1.10724189,60363.0,60362.0,0.4979141]
[1723382294116,1.11535222,60363.0,60362.0,0.4979141]
[1723382294595,1.09924189,60363.0,60362.0,0.4979141]
[1723382295022,0.87131189,60363.0,60362.0,0.4979141]
[1723382295254,1.11135222,60363.0,60362.0,0.4979141]
[1723382295869,1.11535222,60363.0,60362.0,0.4979141]
[1723382296354,1.34328222,60363.0,60362.0,0.4979141]
[1723382296584,1.34728222,60363.0,60362.0,0.4979141]
[1723382296790,0.59276633,60363.0,60362.0,0.4979141]
[1723382297415,0.58876633,60363.0,60362.0,0.4979141]
[1723382297628,0.59676633,60363.0,60362.0,0.4979141]
[1723382298065,0.59276633,60363.0,60362.0,0.4979141]
[1723382298472,0.59676633,60363.0,60362.0,0.4979141]
[1723382299312,0.588656,60363.0,60362.0,0.4979141]
[1723382299964,0.59676633,60363.0,60362.0,0.4979141]
[1723382300421,0.66332369,60363.0,60362.0,0.4979141]
[1723382301299,0.43137566,60363.0,60362.0,0.4979141]
[1723382301526,0.42326533,60363.0,60362.0,0.5735141]
[1723382302021,0.43137566,60363.0,60362.0,0.5735141]
[1723382303095,0.13290633,60363.0,60362.0,0.5735141]
[1723382303358,0.008831,60363.0,60362.0,0.6343141]
[1723382304373,0.004831,60363.0,60362.0,0.6343141]
[1723382304599,0.000831,60363.0,60362.0,0.6343141]
[1723382304806,0.006831,60363.0,60362.0,0.6343141]
[1723382305476,0.006831,60363.0,60362.0,1.37796102]
[1723382305683,0.006831,60363.0,60362.0,1.79165178]
[1723382305908,0.006831,60363.0,60362.0,1.99972412]
[1723382306121,0.006831,60363.0,60362.0,2.23165712]
[1723382306122,0.000831,60363.0,60362.0,2.23165712]
[1723382306326,0.000831,60375.0,60373.0,0.72331667]
[1723382306566,0.000831,60375.0,60373.0,1.38404159]
[1723382306827,0.000831,60375.0,60373.0,1.61643938]
[1723382307249,0.000831,60375.0,60373.0,1.67551556]
[1723382307670,0.026876,60374.0,60373.0,1.68751556]
[1723382308142,0.025876,60374.0,60373.0,1.68151556]
[1723382309183,0.024876,60374.0,60373.0,1.67551556]
[1723382309411,0.025876,60374.0,60373.0,1.68251556]
[1723382309636,0.025876,60374.0,60373.0,1.69051556]
[1723382309637,0.026876,60374.0,60373.0,1.69051556]
[1723382309861,0.026876,60374.0,60373.0,1.62904292]
[1723382310069,0.026876,60374.0,60373.0,1.63143938]
[1723382310277,0.025876,60374.0,60373.0,1.68228501]
[1723382310483,0.024876,60374.0,60373.0,1.61643938]
[1723382310726,0.026876,60374.0,60373.0,1.64343282]
[1723382310928,0.027707,60374.0,60373.0,1.64103636]
[1723382311136,0.026707,60374.0,60373.0,1.69259352]
[1723382311341,0.026707,60374.0,60373.0,1.63392603]
[1723382311545,0.027707,60374.0,60373.0,1.64492603]
[1723382312241,0.026707,60374.0,60373.0,1.63743282]
[1723382312475,0.026707,60374.0,60373.0,1.40314536]
[1723382312701,0.027707,60374.0,60373.0,1.41314536]
[1723382313132,0.027707,60374.0,60373.0,1.41554182]
[1723382313411,0.027707,60374.0,60373.0,0.79766336]
[1723382313412,0.026707,60374.0,60373.0,0.79766336]
[1723382313769,0.026707,60374.0,60373.0,0.50691]
[1723382313772,0.15176033,60374.0,60373.0,0.51791]
[1723382314235,0.61553433,60374.0,60373.0,0.51791]
[1723382314726,0.607424,60374.0,60373.0,0.51791]
[1723382314952,0.606424,60374.0,60373.0,0.50691]
[1723382315353,0.606424,60374.0,60373.0,0.49791]
[1723382315354,0.373537,60374.0,60373.0,0.49791]
[1723382315579,0.14976033,60374.0,60373.0,0.49791]
[1723382315874,0.46349379,60374.0,60373.0,0.49891]
[1723382316328,0.68727046,60374.0,60373.0,0.49891]
[1723382316573,0.91915746,60374.0,60373.0,0.49891]
[1723382316796,1.06265746,60374.0,60373.0,0.49891]
[1723382317035,1.07076779,60374.0,60373.0,0.49891]
[1723382317476,1.072261,60374.0,60373.0,0.49891]
[1723382317694,1.072261,60374.0,60373.0,0.49791]
[1723382317914,1.072261,60374.0,60373.0,0.49891]
[1723382318148,1.081261,60374.0,60373.0,0.49891]
[1723382318405,1.072261,60374.0,60373.0,0.49691]
[1723382318616,1.072261,60374.0,60373.0,0.49791]
[1723382318617,1.081261,60374.0,60373.0,0.49791]
[1723382318822,1.081261,60374.0,60373.0,0.49891]
[1723382318823,1.095261,60374.0,60373.0,0.49891]
[1723382319234,1.081261,60374.0,60373.0,0.49791]
[1723382319687,1.094261,60374.0,60373.0,0.49891]
[1723382321179,1.16082444,60374.0,60373.0,0.49891]
[1723382321392,1.15182444,60374.0,60373.0,0.49791]
[1723382321601,1.072261,60374.0,60373.0,0.49691]
[1723382321808,1.093261,60374.0,60373.0,0.49891]
[1723382322440,1.15982792,60374.0,60373.0,0.49891]
[1723382322898,1.093261,60374.0,60373.0,0.49891]
[1723382323332,1.15983235,60374.0,60373.0,0.49891]
[1723382323972,1.08515067,60374.0,60373.0,0.49891]
[1723382324189,1.01955067,60374.0,60373.0,0.49891]
[1723382324325,0.63453433,60374.0,60373.0,0.49891]
[1723382324741,0.63602754,60374.0,60373.0,0.49891]
[1723382324937,0.62791721,60374.0,60373.0,0.49891]
[1723382325135,0.63602754,60374.0,60373.0,0.49891]
[1723382325377,0.62302754,60374.0,60373.0,0.49791]
[1723382325725,0.63502754,60374.0,60373.0,0.49891]
[1723382326344,0.62702754,60374.0,60373.0,0.49791]
[1723382326545,1.37754343,60374.0,60373.0,0.49791]
[1723382326773,1.38554343,60374.0,60373.0,0.49891]
[1723382327866,1.38405022,60374.0,60373.0,0.49891]
[1723382329107,1.37205022,60374.0,60373.0,0.49791]
[1723382329235,1.38305022,60374.0,60373.0,0.49891]
[1723382329444,1.37505022,60374.0,60373.0,0.49791]
[1723382329885,1.37505022,60374.0,60373.0,0.73922492]
[1723382329886,0.80333322,60374.0,60373.0,0.73922492]
[1723382330099,0.79522289,60374.0,60373.0,1.08706092]
[1723382330319,0.79522289,60374.0,60373.0,0.85516992]
[1723382330983,0.033707,60374.0,60373.0,1.08606092]
[1723382331225,0.030707,60374.0,60373.0,1.37785192]
[1723382331630,0.035707,60374.0,60373.0,1.37785192]
[1723382332331,0.030707,60374.0,60373.0,1.37785192]
[1723382332533,0.030707,60374.0,60373.0,1.38185192]
[1723382332983,0.025707,60374.0,60373.0,1.38185192]
[1723382333175,0.025707,60374.0,60373.0,1.38585192]
[1723382333434,0.025707,60374.0,60373.0,1.38185192]
[1723382333895,0.025707,60374.0,60373.0,1.38685192]
[1723382334456,0.025707,60374.0,60373.0,1.39291246]
[1723382334893,0.025707,60374.0,60373.0,1.39791246]
[1723382335259,0.025707,60374.0,60373.0,1.39841925]
[1723382335577,0.025707,60374.0,60373.0,1.40030892]
[1723382336205,0.025707,60374.0,60373.0,1.39341925]
[1723382336557,0.026707,60374.0,60373.0,1.39630892]
[1723382336985,0.027707,60374.0,60373.0,1.63619992]
[1723382338046,0.026707,60374.0,60373.0,1.63019992]
[1723382338503,0.027707,60374.0,60373.0,1.63719992]
[1723382338706,0.027707,60374.0,60373.0,1.40341925]
[1723382338932,0.026707,60374.0,60373.0,1.39830892]
[1723382339865,0.027707,60374.0,60373.0,1.40730892]
[1723382340706,0.027707,60374.0,60373.0,1.40541925]
[1723382340878,0.027707,60374.0,60373.0,1.40730892]
[1723382341471,0.027707,60374.0,60373.0,1.17302146]
[1723382342161,0.027707,60374.0,60373.0,0.51391]
[1723382342393,0.513837,60374.0,60373.0,0.51391]
[1723382342620,0.375537,60374.0,60373.0,0.51391]
[1723382343081,0.607424,60374.0,60373.0,0.51391]
[1723382343525,0.67321002,60374.0,60373.0,0.50491]
[1723382343766,0.67321002,60374.0,60373.0,0.50591]
[1723382343996,0.67221002,60374.0,60373.0,0.49791]
[1723382344217,0.67221002,60374.0,60373.0,0.49891]
[1723382344660,0.605424,60374.0,60373.0,0.49891]
[1723382345141,0.373537,60374.0,60373.0,0.49891]
[1723382345363,0.14165,60374.0,60373.0,0.49891]
[1723382345594,0.14976033,60374.0,60373.0,0.49891]
[1723382345812,0.14165,60374.0,60373.0,0.49891]
[1723382346037,0.14976033,60374.0,60373.0,0.49891]
[1723382346262,0.03381733,60374.0,60373.0,0.49891]
[1723382346548,0.14976033,60374.0,60373.0,0.49891]
[1723382346766,0.14966033,60374.0,60373.0,0.49891]
[1723382347233,0.14155,60374.0,60373.0,0.49891]
[1723382347461,0.14966033,60374.0,60373.0,0.49891]
[1723382347909,0.025607,60374.0,60373.0,0.49891]
[1723382349301,0.025607,60374.0,60373.0,1.31955871]
[1723382349517,0.025607,60374.0,60373.0,1.31905192]
[1723382350268,0.025607,60374.0,60373.0,1.61264292]
[1723382350640,0.025607,60374.0,60373.0,1.67387136]
[1723382351281,0.025607,60374.0,60373.0,1.67187136]
[1723382351737,0.026607,60374.0,60373.0,1.67987136]
[1723382351940,0.026607,60374.0,60373.0,1.6797495]
[1723382352145,0.025607,60374.0,60373.0,1.6717495]
[1723382352579,0.025607,60374.0,60373.0,1.68180623]
[1723382352997,0.026607,60374.0,60373.0,1.69080623]
[1723382353287,0.025607,60374.0,60373.0,1.68180623]
[1723382353728,0.027607,60374.0,60373.0,1.70180623]
[1723382354172,0.026607,60374.0,60373.0,1.69080623]
[1723382354383,0.026607,60374.0,60373.0,1.70180623]
[1723382354587,0.026607,60374.0,60373.0,1.69280623]
[1723382354788,0.027607,60374.0,60373.0,1.70480623]
[1723382355218,0.027607,60374.0,60373.0,1.70240977]
[1723382355435,0.027607,60374.0,60373.0,1.70266289]
[1723382355642,0.027607,60374.0,60373.0,1.71266289]
[1723382356705,0.027607,60374.0,60373.0,1.94455389]
[1723382356911,0.027607,60374.0,60373.0,2.15265697]
[1723382357121,0.027607,60374.0,60373.0,2.16505343]
[1723382358036,0.027607,60374.0,60373.0,2.16561021]
[1723382358963,0.027607,60374.0,60373.0,2.16558856]
[1723382359425,0.027607,60374.0,60373.0,1.89798711]
[1723382359687,0.000831,60388.0,60387.0,1.104966]
[1723382359921,0.000831,60388.0,60387.0,1.54348552]
[1723382360160,0.000831,60388.0,60387.0,2.04028552]
[1723382361066,0.000831,60388.0,60387.0,2.06028552]
[1723382361521,0.000831,60397.0,60392.0,0.821363]
[1723382361800,0.000831,60397.0,60392.0,1.82833252]
[1723382362031,0.000831,60397.0,60392.0,2.23196716]
[1723382362256,0.000831,60397.0,60392.0,2.06015052]
[1723382362513,0.000831,60397.0,60392.0,2.06023848]
[1723382363189,0.000831,60397.0,60392.0,2.06022185]
[1723382363409,0.000831,60397.0,60392.0,2.02404115]
[1723382363859,0.000831,60397.0,60392.0,2.01564469]
[1723382364099,0.000831,60397.0,60392.0,1.78622315]
[1723382364320,0.000831,60397.0,60392.0,1.72662438]
[1723382364803,0.000831,60397.0,60392.0,1.50640992]
[1723382365021,0.000831,60397.0,60392.0,1.42980992]
[1723382365511,0.000831,60397.0,60392.0,1.43169959]
[1723382365736,0.000831,60397.0,60392.0,1.43220638]
[1723382365983,0.000831,60397.0,60392.0,1.26810992]
[1723382366217,0.077131,60393.0,60392.0,0.52475]
[1723382366430,0.08267746,60393.0,60392.0,0.872477]
[1723382366660,0.08267746,60393.0,60392.0,1.26810992]
[1723382366661,0.07742673,60393.0,60392.0,1.26810992]
[1723382366884,0.07720096,60393.0,60392.0,1.32010992]
[1723382367110,0.07720096,60393.0,60392.0,1.53792792]
[1723382367344,0.000831,60397.0,60396.0,0.579507]
[1723382367570,0.000831,60397.0,60396.0,1.05212492]
[1723382367801,0.000831,60397.0,60396.0,1.55124138]
[1723382368052,0.000831,60397.0,60396.0,1.84664792]
[1723382368283,0.000831,60397.0,60396.0,1.95664792]
[1723382368533,0.000831,60397.0,60396.0,2.01519189]
[1723382369468,0.000831,60397.0,60396.0,2.01525734]
[1723382369691,0.000831,60397.0,60396.0,1.95671337]
[1723382369919,0.000831,60397.0,60396.0,1.96671337]
[1723382370372,0.001831,60397.0,60396.0,1.97871337]
[1723382370608,0.001831,60397.0,60396.0,1.75230683]
[1723382370841,0.06999494,60399.0,60398.0,0.57999379]
[1723382371073,0.06999494,60399.0,60398.0,1.57231371]
[1723382372285,0.06989494,60399.0,60398.0,0.66052492]
[1723382372517,0.14119494,60399.0,60398.0,0.77642192]
[1723382372749,0.15079848,60399.0,60398.0,0.49671]
[1723382372989,0.78656515,60399.0,60398.0,0.50671]
[1723382373230,0.56139127,60399.0,60398.0,0.51771]
[1723382373451,0.32148994,60399.0,60398.0,0.51771]
[1723382373680,0.32148994,60399.0,60398.0,0.50771]
[1723382373906,0.20559494,60399.0,60398.0,0.50821679]
[1723382374132,0.5,60400.0,60399.0,0.347686]
[1723382374360,0.5,60400.0,60399.0,0.74329192]
[1723382374583,0.5,60400.0,60399.0,1.23999192]
[1723382375967,0.5,60400.0,60399.0,1.47178292]
[1723382376190,0.5,60400.0,60399.0,1.55067259]
[1723382376419,0.5,60400.0,60399.0,1.72117938]
[1723382376661,0.5,60400.0,60399.0,1.77686289]
[1723382377148,0.5,60400.0,60399.0,1.78186289]
[1723382377393,0.5,60400.0,60399.0,1.78786289]
[1723382377611,0.5,60400.0,60399.0,1.78286289]
[1723382377833,0.501,60400.0,60399.0,1.78346643]
[1723382378058,0.501,60400.0,60399.0,2.02525743]
[1723382379907,0.501,60400.0,60399.0,2.02540669]
[1723382380352,0.501,60400.0,60399.0,2.02780315]
[1723382380580,0.501,60400.0,60399.0,2.02533873]
[1723382380809,0.501,60400.0,60399.0,2.02873519]
[1723382381037,0.5,60400.0,60399.0,2.01633873]
[1723382381287,0.501,60400.0,60399.0,2.04433873]
[1723382381735,0.501,60400.0,60399.0,2.08054027]
[1723382382409,0.501,60400.0,60399.0,2.06654027]
[1723382382851,0.501,60400.0,60399.0,2.09293673]
[1723382383081,0.501,60400.0,60399.0,2.06493673]
[1723382383329,0.5,60400.0,60399.0,2.07893673]
[1723382383568,0.5,60400.0,60399.0,2.09291551]
[1723382383790,0.49944259,60400.0,60399.0,2.09291551]
[1723382384008,0.49944259,60400.0,60399.0,2.07891551]
[1723382384227,0.49944259,60400.0,60399.0,2.06491551]
[1723382384445,0.49944259,60400.0,60399.0,2.26471206]
[1723382384841,0.49944259,60400.0,60399.0,2.25071206]
[1723382385063,0.49944259,60400.0,60399.0,2.09291551]
[1723382385747,0.49944259,60400.0,60399.0,2.07891551]
[1723382386220,0.49944259,60400.0,60399.0,2.26471453]
[1723382386447,0.49944259,60400.0,60399.0,2.25071453]
[1723382386672,0.49944259,60400.0,60399.0,2.09291551]
[1723382386880,0.50027259,60400.0,60399.0,2.09291551]
[1723382387105,0.50027259,60400.0,60399.0,2.26484334]
[1723382387350,0.50027259,60400.0,60399.0,2.25084334]
[1723382387562,0.50027259,60400.0,60399.0,2.26484334]
[1723382387980,0.50027259,60400.0,60399.0,2.25244688]
[1723382388195,0.48264259,60400.0,60399.0,2.23844688]
[1723382388429,0.27969259,60400.0,60399.0,2.2614429]
[1723382388878,0.27969259,60400.0,60399.0,2.2474429]
[1723382389089,0.27969259,60400.0,60399.0,2.2614429]
[1723382389523,0.27969259,60400.0,60399.0,2.2474429]
[1723382389738,0.27969259,60400.0,60399.0,2.2754429]
[1723382389955,0.27969259,60400.0,60399.0,2.16536951]
[1723382390162,0.27969259,60400.0,60399.0,2.15136951]
[1723382390312,0.25150807,60400.0,60399.0,2.16876597]
[1723382390725,0.25150807,60400.0,60399.0,2.15636951]
[1723382391150,0.25150807,60400.0,60399.0,2.04476787]
[1723382391787,0.25150807,60400.0,60399.0,2.08101507]
[1723382391788,0.23332807,60400.0,60399.0,2.08101507]
[1723382391989,0.23332807,60400.0,60399.0,2.2165636]
[1723382392341,0.23332807,60400.0,60399.0,2.26520745]
[1723382392558,0.23332807,60400.0,60399.0,2.25281099]
[1723382392977,0.23332807,60400.0,60399.0,2.26520745]
[1723382393399,0.23332807,60400.0,60399.0,2.27669391]
[1723382393613,0.23332807,60400.0,60399.0,2.28909037]
[1723382393826,0.2327693,60400.0,60399.0,2.15357828]
[1723382394039,0.2327693,60400.0,60399.0,2.32537506]
[1723382394471,0.2327693,60400.0,60399.0,2.32534787]
[1723382395732,0.22815253,60400.0,60399.0,2.32534787]
[1723382396346,0.22815253,60400.0,60399.0,2.31295141]
[1723382396760,0.22815253,60400.0,60399.0,2.32534787]
[1723382397376,0.21061253,60400.0,60399.0,2.31295141]
[1723382397595,0.21061253,60400.0,60399.0,2.34834787]
[1723382398235,0.19237253,60400.0,60399.0,2.34834787]
[1723382399321,0.17456253,60400.0,60399.0,2.34834787]
[1723382399568,0.17456253,60400.0,60399.0,2.33434787]
[1723382400433,0.15645253,60400.0,60399.0,2.58105187]
[1723382400884,0.15645253,60400.0,60399.0,2.52099827]
[1723382401149,0.15645253,60400.0,60399.0,2.34970783]
[1723382401391,0.15645253,60400.0,60399.0,2.31270783]
[1723382401628,0.15645253,60400.0,60399.0,2.31670783]
[1723382401843,0.15645253,60400.0,60399.0,2.32670783]
[1723382402066,0.15645253,60400.0,60399.0,2.31270783]
[1723382402289,0.15645253,60400.0,60399.0,2.32670783]
[1723382402529,0.15048551,60400.0,60399.0,2.32670783]
[1723382402741,0.13723039,60400.0,60399.0,2.32670783]
[1723382402967,0.13723039,60400.0,60399.0,2.30670783]
[1723382403617,0.13723039,60400.0,60399.0,2.02407733]
[1723382403856,0.13667151,60400.0,60399.0,2.23157291]
[1723382404093,0.13667151,60400.0,60399.0,2.24557291]
[1723382404326,0.13667151,60400.0,60399.0,2.24557289]
[1723382404564,0.13667151,60400.0,60399.0,2.23157289]
[1723382404789,0.13667151,60400.0,60399.0,2.24557289]
[1723382406191,0.13667151,60400.0,60399.0,2.29508266]
[1723382407367,0.13667151,60400.0,60399.0,2.29509626]
[1723382409361,0.13667151,60400.0,60399.0,2.24558649]
[1723382410038,0.13667151,60400.0,60399.0,2.2951335]
[1723382410299,0.13667151,60400.0,60399.0,2.24558649]
[1723382410526,0.06794096,60400.0,60399.0,2.26558649]
[1723382410769,0.03516442,60400.0,60399.0,2.09063368]
[1723382410997,0.03516442,60400.0,60399.0,2.32268251]
[1723382411219,0.03516442,60400.0,60399.0,2.36523167]
[1723382411920,0.01254443,60400.0,60399.0,2.25374135]
[1723382412158,0.00083,60406.0,60405.0,1.06535246]
[1723382412381,0.00083,60406.0,60405.0,2.22377535]
[1723382412615,0.000931,60409.0,60408.0,1.042906]
[1723382412860,0.000931,60409.0,60408.0,2.07159535]
[1723382413051,0.000931,60409.0,60408.0,2.08159535]
[1723382413851,9.999e-05,60409.0,60408.0,2.08159535]
[1723382414051,9.999e-05,60409.0,60408.0,2.15592941]
[1723382414493,9.999e-05,60409.0,60408.0,2.16792941]
[1723382414699,9.999e-05,60409.0,60408.0,2.16748067]
[1723382415118,9.999e-05,60409.0,60408.0,2.18148067]
[1723382415533,9.999e-05,60409.0,60408.0,2.10714661]
[1723382415958,9.999e-05,60409.0,60408.0,2.11954307]
[1723382416193,9.999e-05,60409.0,60408.0,2.09954307]
[1723382416859,9.999e-05,60409.0,60408.0,2.10962255]
[1723382417480,0.22434645,60409.0,60408.0,1.14018505]
[1723382417699,0.22434645,60409.0,60408.0,1.0441494]
[1723382417933,0.22434645,60409.0,60408.0,1.10363106]
[1723382418342,0.22434645,60409.0,60408.0,0.84587406]
[1723382418548,0.22434645,60409.0,60408.0,1.07763106]
[1723382418756,0.22434645,60409.0,60408.0,1.09963106]
[1723382418985,0.22434645,60409.0,60408.0,1.31938806]
[1723382419204,9.999e-05,60409.0,60408.0,1.55114506]
[1723382419414,9.999e-05,60409.0,60408.0,1.59617607]
[1723382419637,9.999e-05,60409.0,60408.0,1.87035935]
[1723382419835,9.999e-05,60409.0,60408.0,1.8589628]
[1723382420049,9.999e-05,60409.0,60408.0,1.67717607]
[1723382420270,9.999e-05,60409.0,60408.0,1.68517607]
[1723382420478,9.999e-05,60409.0,60408.0,1.69217607]
[1723382421093,9.999e-05,60409.0,60408.0,1.68517607]
[1723382421303,9.999e-05,60409.0,60408.0,1.86151942]
[1723382421527,9.999e-05,60409.0,60408.0,1.86101954]
[1723382421965,9.999e-05,60409.0,60408.0,1.863416]
[1723382422194,9.999e-05,60409.0,60408.0,1.877416]
[1723382422600,9.999e-05,60409.0,60408.0,1.95175006]
[1723382423908,0.00785572,60410.0,60409.0,0.81353146]
[1723382424122,0.00785572,60410.0,60409.0,1.91564658]
[1723382424569,0.00785572,60410.0,60409.0,1.91325012]
[1723382424774,0.00785572,60410.0,60409.0,1.81768089]
[1723382424983,0.00785572,60410.0,60409.0,1.91317906]
[1723382425206,0.00785572,60410.0,60409.0,1.92417906]
[1723382425424,0.00785572,60410.0,60409.0,2.21847074]
[1723382425648,0.00785572,60410.0,60409.0,2.23210585]
[1723382426494,0.00785572,60410.0,60409.0,2.00274931]
[1723382426706,0.00785572,60410.0,60409.0,1.98974931]
[1723382427129,0.00785572,60410.0,60409.0,1.97874931]
[1723382427335,0.00785572,60410.0,60409.0,1.99274931]
[1723382427758,0.00785572,60410.0,60409.0,1.85335964]
[1723382427968,0.00785572,60410.0,60409.0,1.94050477]
[1723382428198,0.00785572,60410.0,60409.0,1.85524931]
[1723382428624,0.00785572,60410.0,60409.0,1.94129391]
[1723382428836,0.00785572,60410.0,60409.0,1.95450477]
[1723382429230,0.00785572,60410.0,60409.0,1.96610831]
[1723382429734,0.00785572,60410.0,60409.0,2.10100231]
[1723382429915,0.00785572,60410.0,60409.0,2.09860585]
[1723382430367,0.00785572,60410.0,60409.0,2.28467518]
[1723382430576,0.00785572,60410.0,60409.0,2.29867518]
[1723382431203,0.00785572,60410.0,60409.0,2.27067518]
[1723382431638,0.00785572,60410.0,60409.0,2.14660585]
[1723382432064,0.00785572,60410.0,60409.0,2.17700231]
[1723382432251,0.00785572,60410.0,60409.0,2.16300231]
[1723382432480,0.00785572,60410.0,60409.0,2.17700231]
[1723382432909,0.00785572,60410.0,60409.0,2.16300231]
[1723382433364,0.00785572,60410.0,60409.0,2.14900231]
[1723382433580,0.00785572,60410.0,60409.0,2.16300231]
[1723382433806,0.00785572,60410.0,60409.0,2.16060585]
[1723382434012,0.0083,60415.0,60414.0,0.81346546]
[1723382434224,0.0083,60415.0,60414.0,2.14489894]
[1723382435082,0.0083,60415.0,60414.0,1.87760601]
[1723382435296,0.0083,60415.0,60414.0,2.33061255]
[1723382435512,0.0083,60415.0,60414.0,2.34461255]
[1723382435721,0.0083,60415.0,60414.0,2.16124458]
[1723382435968,0.0083,60415.0,60414.0,2.33300477]
[1723382436202,0.0083,60415.0,60414.0,2.34700477]
[1723382436596,0.0083,60415.0,60414.0,2.25858668]
[1723382437035,0.0083,60415.0,60414.0,2.27258668]
[1723382437463,0.0083,60415.0,60414.0,2.30818672]
[1723382438096,0.0906,60415.0,60414.0,2.02445622]
[1723382438295,0.1516,60415.0,60414.0,2.02496301]
[1723382438533,0.1516,60415.0,60414.0,1.83920282]
[1723382438748,0.1516,60415.0,60414.0,1.75961322]
[1723382438965,0.1516,60415.0,60414.0,1.86903977]
[1723382439623,0.1516,60415.0,60414.0,1.70668217]
[1723382439844,0.1516,60415.0,60414.0,1.2531054]
[1723382440232,0.1516,60415.0,60414.0,1.4848394]
[1723382440459,0.1516,60415.0,60414.0,1.2391054]
[1723382441105,0.1516,60415.0,60414.0,1.2501054]
[1723382441312,0.1516,60415.0,60414.0,1.2631054]
[1723382441522,0.1516,60415.0,60414.0,1.2391054]
[1723382441754,0.1516,60415.0,60414.0,1.4708394]
[1723382441993,0.1516,60415.0,60414.0,1.2541054]
[1723382442239,0.1516,60415.0,60414.0,0.90593806]
[1723382442509,0.1516,60415.0,60414.0,1.25353906]
[1723382443202,0.1516,60415.0,60414.0,0.68333284]
[1723382443426,0.27557533,60415.0,60414.0,0.68333284]
[1723382443652,0.1516,60415.0,60414.0,1.07888176]
[1723382443904,0.0083,60415.0,60414.0,2.01211001]
[1723382444130,0.00831,60424.0,60423.0,0.58164346]
[1723382444377,0.00831,60424.0,60423.0,1.56598229]
[1723382444596,0.00831,60424.0,60423.0,1.73772599]
[1723382444818,0.00831,60424.0,60423.0,2.21562145]
[1723382445057,0.0001,60429.0,60423.0,2.21562145]
[1723382445058,0.0001,60429.0,60428.0,0.20013646]
[1723382445291,0.0001,60429.0,60428.0,2.2188054]
[1723382445528,0.0775,60447.0,60441.0,0.34984146]
[1723382445749,0.0775,60447.0,60441.0,1.20472775]
[1723382445965,0.069,60447.0,60446.0,0.347416]
[1723382446192,0.069,60447.0,60446.0,1.33965871]
[1723382446428,0.069,60447.0,60446.0,1.39772033]
[1723382446675,0.0001,60449.0,60448.0,1.042218]
[1723382446897,0.0001,60449.0,60448.0,1.76037837]
[1723382447108,0.0001,60449.0,60448.0,1.86037837]
[1723382447758,0.0001,60449.0,60448.0,1.86277483]
[1723382447981,0.0001,60449.0,60448.0,1.62877437]
[1723382448214,0.0001,60449.0,60448.0,1.63117083]
[1723382448641,0.00813324,60454.0,60453.0,0.58135646]
[1723382448903,0.00813324,60454.0,60453.0,1.33902492]
[1723382449122,0.00813324,60454.0,60453.0,1.34091459]
[1723382449333,0.00813324,60454.0,60453.0,1.33953171]
[1723382449556,0.00813324,60454.0,60453.0,1.33902492]
[1723382449966,0.00813324,60454.0,60453.0,1.34542138]
[1723382450413,0.01624357,60454.0,60453.0,1.34302492]
[1723382450633,0.00813324,60454.0,60453.0,1.34302492]
[1723382451293,0.00813324,60454.0,60453.0,1.33902492]
[1723382451769,0.00813324,60454.0,60453.0,1.34853171]
[1723382452001,0.00813324,60454.0,60453.0,0.49625]
[1723382452258,1.53953357,60454.0,60453.0,0.50925]
[1723382452486,2.00418878,60454.0,60453.0,0.50925]
[1723382452700,2.00418878,60454.0,60453.0,0.50425]
[1723382452914,2.00269557,60454.0,60453.0,0.50425]
[1723382453131,2.00269557,60454.0,60453.0,0.51325]
[1723382453347,2.00269557,60454.0,60453.0,0.50425]
[1723382453579,2.00269557,60454.0,60453.0,0.49625]
[1723382453796,2.00269557,60454.0,60453.0,0.50425]
[1723382454019,2.40809149,60454.0,60453.0,0.50425]
[1723382454236,2.43298116,60454.0,60453.0,0.50425]
[1723382454466,2.4325847,60454.0,60453.0,0.49625]
[1723382454701,2.43747437,60454.0,60453.0,0.49725]
[1723382454924,1.77411457,60454.0,60453.0,0.49725]
[1723382455143,1.41663324,60454.0,60453.0,0.49725]
[1723382455387,1.42374357,60454.0,60453.0,0.612042]
[1723382455584,1.42574357,60454.0,60453.0,0.612042]